[Event "XVI Memorial Lezcano Montalvo 2024"]
[Site "Gran Canaria"]
[Date "2024.03.30"]
[Round "8.22"]
[White "Martin Ramos, Daniel"]
[Black "Perez Bolanos, David"]
[Result "1/2-1/2"]
[ECO "C54"]
[WhiteElo "1961"]
[BlackElo "2053"]
[Annotator "RC"]
[PlyCount "70"]
[EventDate "2024.03.23"]
[EventType "swiss"]
[EventCountry "ESP"]
[SourceTitle "playchess.com"]
[Source "ChessBase"]
[SourceQuality "1"]
[TimeControl "5400+30"]

1. e4 {[%emt 0:00:03]} e5 {[%emt 0:00:20]} 2. Nf3 {[%emt 0:00:06]} Nc6 {[%emt 0:00:08]} 3. Bc4 {[%emt 0:00:06]} Nf6 {[%emt 0:00:20]} 4. d3 {[%emt 1:32:15]} Bc5 {[%emt 0:00:10]} 5. c3 {[%emt 0:00:00]} a6 {[%emt 0:00:09]} 6. Bb3 {[%emt 0:00:00]} d6 {[%emt 0:00:12]} 7. Nbd2 {[%emt 0:00:00]} Ba7 {[%emt 0:00:10]} 8. Nf1 {[%emt 0:00:00]} h6 {[%emt 0:01:25]} 9. Ng3 {[%emt 0:00:00]} O-O {[%emt 0:00:16]} 10. O-O {[%emt 0:00:00]} Re8 {[%emt 0:01:13]} 11. h3 {[%emt 0:00:00]} Be6 {[%emt 0:01:29]} 12. Be3 {[%emt 0:00:00]} d5 {[%emt 0:02:26]} 13. Bxa7 {[%emt 0:00:00]} Rxa7 {[%emt 0:00:30]} 14. Re1 {[%emt 0:00:00]} Ra8 {[%emt 0:10:00]} 15. Qc2 {[%emt 0:00:00]} Qd6 {[%emt 0:12:27]} 16. exd5 {[%emt 0:00:00]} Nxd5 {[%emt 0:04:57]} 17. Ne4 {[%emt 0:00:00]} Qf8 {[%emt 0:06:06]} 18. d4 {[%emt 0:00:00]} exd4 {[%emt 0:01:37]} 19. Rad1 {[%emt 0:00:00]} Rad8 {[%emt 0:18:47]} 20. Nxd4 {[%emt 0:00:00]} Nxd4 {[%emt 0:00:11]} 21. Rxd4 {[%emt 0:00:00]} c5 {[%emt 0:01:54]} 22. Rdd1 {[%emt 0:00:00]} b5 {[%emt 0:01:34]} 23. Bxd5 {[%emt 0:00:00]} Bxd5 {[%emt 0:04:09]} 24. Ng3 {[%emt 0:00:00]} g6 {[%emt 0:04:45]} 25. Rxe8 {[%emt 0:00:00]} Qxe8 {[%emt 0:00:12]} 26. Qd2 {[%emt 0:00:00]} Kh7 {[%emt 0:01:42]} 27. Nf1 {[%emt 0:00:00]} Rd7 {[%emt 0:02:45]} 28. b3 {[%emt 0:00:00]} Bc6 {[%emt 0:01:23]} 29. Qc1 {[%emt 0:00:00]} Qe4 {[%emt 0:05:29]} 30. f3 {[%emt 0:00:00]} Qe5 {[%emt 0:01:01]} 31. Rxd7 {[%emt 0:00:00]} Bxd7 {[%emt 0:00:06]} 32. Qe3 {[%emt 0:00:00]} Qxe3+ {[%emt 0:00:58]} 33. Nxe3 {[%emt 0:00:00]} Be6 {[%emt 0:03:01]} 34. f4 {[%emt 0:00:00]} f5 {[%emt 0:02:55]} 35. Kf2 {[%emt 0:00:00]} Kg7 {[%emt 0:13:13]} 1/2-1/2

[Event "XVI Memorial Lezcano Montalvo 2024"]
[Site "Gran Canaria"]
[Date "2024.03.30"]
[Round "8.23"]
[White "Sanchez Montesdeoca, Isaac"]
[Black "Mendez Acosta, Alexander Jesus"]
[Result "0-1"]
[ECO "D30"]
[WhiteElo "1832"]
[BlackElo "2025"]
[Annotator "RC"]
[PlyCount "84"]
[EventDate "2024.03.23"]
[EventType "swiss"]
[EventCountry "ESP"]
[SourceTitle "playchess.com"]
[Source "ChessBase"]
[SourceQuality "1"]
[TimeControl "5400+30"]

1. Nf3 {[%emt 0:00:25]} d5 {[%emt 0:00:29]} 2. d4 {[%emt 0:00:08]} e6 {[%emt 0:01:30]} 3. g3 {[%emt 0:00:41]} c5 {[%emt 0:00:57]} 4. c4 {[%emt 0:00:02]} Nf6 {[%emt 0:01:16]} 5. Bg2 {[%emt 0:00:08]} Nc6 {[%emt 0:03:06]} 6. cxd5 {[%emt 0:00:33]} exd5 {[%emt 0:00:38]} 7. O-O {[%emt 0:01:08]} cxd4 {[%emt 0:06:58]} 8. Nxd4 {[%emt 0:00:11]} Be7 {[%emt 0:00:09]} 9. e3 {[%emt 0:02:37]} Bg4 {[%emt 0:07:16]} 10. Qa4 {[%emt 0:00:35]} Qd7 {[%emt 0:00:15]} 11. Nc3 {[%emt 0:05:16]} h5 {[%emt 0:25:48]} 12. f3 {[%emt 0:01:05]} Be6 {[%emt 0:02:06]} 13. Nxe6 {[%emt 0:00:49]} fxe6 {[%emt 0:00:13]} 14. Rd1 {[%emt 0:08:27]} h4 {[%emt 0:06:04]} 15. g4 {[%emt 0:01:17]} h3 {[%emt 0:05:02]} 16. Bh1 {[%emt 0:00:13]} O-O {[%emt 0:07:03]} 17. Bd2 {[%emt 0:01:14]} Bc5 {[%emt 0:02:17]} 18. Rac1 {[%emt 0:01:17]} d4 {[%emt 0:08:27]} 19. Ne2 {[%emt 0:06:21]} d3 {[%emt 0:12:08]} 20. Ng3 {[%emt 0:00:57]} Bb6 {[%emt 0:00:00]} 21. Rc4 {[%emt 0:03:48]} Nd5 {[%emt 0:00:24]} 22. Re4 {[%emt 0:00:14]} Qd6 {[%emt 0:01:02]} 23. Nf1 {[%emt 0:06:55]} Ne5 {[%emt 0:01:52]} 24. Kf2 {[%emt 0:07:55]} Rac8 {[%emt 0:00:55]} 25. Qb3 {[%emt 0:00:30]} Rc2 {[%emt 0:00:55]} 26. Rxe5 {[%emt 0:00:23]} Qxe5 {[%emt 0:00:50]} 27. Qxd3 {[%emt 0:00:18]} Qxb2 {[%emt 0:00:46]} 28. Kg3 {[%emt 0:01:45]} Rcc8 {[%emt 0:02:11]} 29. f4 {[%emt 0:00:37]} Qc2 {[%emt 0:01:14]} 30. Qxc2 {[%emt 0:02:31]} Rxc2 {[%emt 0:00:06]} 31. Kf3 {[%emt 0:00:32]} Rxa2 {[%emt 0:00:39]} 32. Ke4 {[%emt 0:00:26]} Kf7 {[%emt 0:01:32]} 33. f5 {[%emt 0:00:29]} Nf6+ {[%emt 0:00:48]} 34. Kf4 {[%emt 0:00:57]} exf5 {[%emt 0:00:31]} 35. Kxf5 {[%emt 0:00:41]} Ra4 {[%emt 0:00:37]} 36. e4 {[%emt 0:03:21]} Bc7 {[%emt 0:00:08]} 37. Rc1 {[%emt 0:05:13]} g6+ {[%emt 0:01:04]} 38. Kg5 {[%emt 0:00:16]} Bd8 {[%emt 0:00:05]} 39. Kf4 {[%emt 0:01:03]} Re8 {[%emt 0:00:48]} 40. Re1 {[%emt 0:01:07]} Bc7+ {[%emt 0:00:30]} 41. Kg5 {[%emt 0:09:38]} Raxe4 {[%emt 0:00:22]} 42. Ne3 {[%emt 0:00:51]} Bf4+ {[%emt 0:00:22]} 0-1

[Event "XVI Memorial Lezcano Montalvo 2024"]
[Site "Gran Canaria"]
[Date "2024.03.30"]
[Round "8.24"]
[White "Sarmiento Afonso, Santiago"]
[Black "Rivero Tacoronte, Gabriel"]
[Result "0-1"]
[ECO "A09"]
[WhiteElo "2023"]
[BlackElo "1831"]
[Annotator "RC"]
[PlyCount "94"]
[EventDate "2024.03.23"]
[EventType "swiss"]
[EventCountry "ESP"]
[SourceTitle "playchess.com"]
[Source "ChessBase"]
[SourceQuality "1"]
[TimeControl "5400+30"]

1. Nf3 {[%emt 0:00:09]} d5 {[%emt 0:00:03]} 2. c4 {[%emt 0:00:14]} d4 {[%emt 0:00:40]} 3. b4 {[%emt 0:00:30]} g5 {[%emt 0:00:45]} 4. d3 {[%emt 0:04:37]} g4 {[%emt 0:01:42]} 5. Nh4 {[%emt 0:01:04]} e5 {[%emt 0:02:26]} 6. g3 {[%emt 0:00:05]} Bxb4+ {[%emt 0:02:04]} 7. Bd2 {[%emt 0:00:16]} Be7 {[%emt 0:02:14]} 8. Ng2 {[%emt 0:00:20]} c5 {[%emt 0:04:19]} 9. e4 {[%emt 0:02:04]} Nc6 {[%emt 0:14:48]} 10. Be2 {[%emt 0:00:45]} h5 {[%emt 0:02:21]} 11. O-O {[%emt 1:25:56]} f5 {[%emt 0:06:14]} 12. f3 {[%emt 0:00:00]} fxe4 {[%emt 0:05:40]} 13. fxe4 {[%emt 0:00:00]} Nh6 {[%emt 0:03:20]} 14. Na3 {[%emt 0:00:00]} Nf7 {[%emt 0:06:14]} 15. Rb1 {[%emt 0:00:00]} a6 {[%emt 0:00:38]} 16. Kh1 {[%emt 0:00:00]} Nd6 {[%emt 0:19:09]} 17. Be1 {[%emt 0:00:00]} Be6 {[%emt 0:03:04]} 18. Nh4 {[%emt 0:00:00]} Bg5 {[%emt 0:00:44]} 19. Nc2 {[%emt 0:00:00]} Qd7 {[%emt 0:02:12]} 20. Bf2 {[%emt 0:00:00]} O-O-O {[%emt 0:01:03]} 21. Ne1 {[%emt 0:00:00]} Qg7 {[%emt 0:02:31]} 22. Neg2 {[%emt 0:00:00]} Rdf8 {[%emt 0:00:30]} 23. Be1 {[%emt 0:00:00]} Qh6 {[%emt 0:00:20]} 24. Qb3 {[%emt 0:00:00]} Nb8 {[%emt 0:03:05]} 25. Qb6 {[%emt 0:00:00]} Nd7 {[%emt 0:00:25]} 26. Qxd6 {[%emt 0:00:00]} Bd8 {[%emt 0:01:33]} 27. Rxf8 {[%emt 0:00:00]} Rxf8 {[%emt 0:00:22]} 28. Nf5 {[%emt 0:00:00]} Qf6 {[%emt 0:02:42]} 29. Ngh4 {[%emt 0:00:00]} Re8 {[%emt 0:02:14]} 30. Bd2 {[%emt 0:00:00]} Bc7 {[%emt 0:00:54]} 31. Rf1 {[%emt 0:10:00]} Kd8 {[%emt 0:01:20]} 32. Nxd4 {[%emt 0:00:00]} Qxf1+ {[%emt 0:01:04]} 33. Bxf1 {[%emt 0:00:00]} Bxd6 {[%emt 0:00:03]} 34. Nxe6+ {[%emt 0:00:00]} Rxe6 {[%emt 0:00:06]} 35. Nf5 {[%emt 0:00:00]} Bf8 {[%emt 0:01:46]} 36. h3 {[%emt 0:00:00]} Kc8 {[%emt 0:02:44]} 37. hxg4 {[%emt 0:00:00]} hxg4 {[%emt 0:00:04]} 38. Be2 {[%emt 0:00:00]} Rb6 {[%emt 0:00:57]} 39. Bg5 {[%emt 0:00:00]} Rb1+ {[%emt 0:00:55]} 40. Kg2 {[%emt 0:00:00]} Rb2 {[%emt 0:00:08]} 41. Kf2 {[%emt 0:00:00]} Rxa2 {[%emt 0:00:39]} 42. Ke3 {[%emt 0:00:00]} a5 {[%emt 0:00:52]} 43. Bxg4 {[%emt 0:00:00]} a4 {[%emt 0:00:55]} 44. Be7 {[%emt 0:00:00]} Bxe7 {[%emt 0:01:08]} 45. Nxe7+ {[%emt 0:00:00]} Kd8 {[%emt 0:00:10]} 46. Nd5 {[%emt 0:00:00]} a3 {[%emt 0:00:36]} 47. Bd1 {[%emt 0:00:00]} Rh2 {[%emt 0:00:44]} 0-1

[Event "XVI Memorial Lezcano Montalvo 2024"]
[Site "Gran Canaria"]
[Date "2024.03.30"]
[Round "8.25"]
[White "Cruz Pino, Adrian"]
[Black "Gonzalez Perdomo, Sergio"]
[Result "1-0"]
[ECO "D37"]
[WhiteElo "2015"]
[BlackElo "1792"]
[Annotator "NA RC"]
[PlyCount "51"]
[EventDate "2024.03.23"]
[EventType "swiss"]
[EventCountry "ESP"]
[SourceTitle "playchess.com"]
[Source "ChessBase"]
[SourceQuality "1"]
[TimeControl "5400+30"]

1. d4 {[%emt 0:00:08]} d5 {[%emt 0:00:30]} 2. Nf3 {[%emt 0:00:11]} Nf6 {[%emt 0:00:26]} 3. c4 {[%emt 0:00:18]} e6 {[%emt 0:00:15]} 4. Nc3 {[%emt 0:00:09]} h6 {[%emt 0:00:28]} 5. e3 {[%emt 0:00:33]} a6 {[%emt 0:01:03]} 6. a3 {[%emt 0:00:29]} dxc4 {[%emt 0:00:48]} 7. Bxc4 {[%emt 0:00:22]} b5 {[%emt 0:00:18]} 8. Bd3 {[%emt 0:00:04]} Bb7 {[%emt 0:01:19]} 9. b4 {[%emt 0:01:44]} Nbd7 {[%emt 0:03:12]} 10. O-O {[%emt 0:00:27]} Bd6 {[%emt 0:01:30]} 11. Bb2 {[%emt 0:12:44]} O-O {[%emt 0:05:51]} 12. Qc2 {[%emt 0:11:11]} e5 {[%emt 0:15:02]} 13. Nxe5 {[%emt 0:06:13]} Nxe5 {[%emt 0:00:32]} 14. dxe5 {[%emt 0:00:03]} Bxe5 {[%emt 0:00:10]} 15. f4 {[%emt 0:00:30]} Bd6 {[%emt 0:10:07]} 16. Rad1 {[%emt 0:01:22]} Qe8 {[%emt 0:10:57]} 17. e4 {[%emt 0:02:56]} Be7 {[%emt 0:01:30]} 18. e5 {[%emt 0:00:38]} Nd7 {[%emt 0:00:15]} 19. Ne4 {[%emt 0:01:28]} Rc8 {[%emt 0:02:59]} 20. Qf2 {[%emt 0:13:21]} c5 {[%emt 0:07:01]} 21. Qg3 {[%emt 0:01:07]} Bxe4 {[%emt 0:07:02]} 22. Bxe4 {[%emt 0:01:01]} cxb4 {[%emt 0:01:19]} 23. axb4 {[%emt 0:07:14]} f5 {[%emt 0:09:24]} 24. Bd5+ {[%emt 0:00:54]} Kh7 {[%emt 0:00:44]} 25. Be6 {[%emt 0:00:28]} Rc7 {[%emt 0:00:35]} 26. Bxd7 {[%emt 0:01:20]} 1-0

[Event "XVI Memorial Lezcano Montalvo 2024"]
[Site "Gran Canaria"]
[Date "2024.03.30"]
[Round "8.26"]
[White "Parra Erazo, Santiago"]
[Black "Mukhi Talreja, Ishita Tina"]
[Result "0-1"]
[ECO "D02"]
[WhiteElo "1439"]
[BlackElo "1755"]
[Annotator "NA RC"]
[PlyCount "72"]
[EventDate "2024.03.23"]
[EventType "swiss"]
[EventCountry "ESP"]
[SourceTitle "playchess.com"]
[Source "ChessBase"]
[SourceQuality "1"]
[TimeControl "5400+30"]

1. d4 {[%emt 0:00:01]} d5 {[%emt 0:00:06]} 2. Nf3 {[%emt 0:00:04]} Nf6 {[%emt 0:00:07]} 3. Bf4 {[%emt 0:00:03]} e6 {[%emt 0:00:08]} 4. e3 {[%emt 0:00:10]} c5 {[%emt 0:00:20]} 5. c3 {[%emt 0:00:04]} Bd6 {[%emt 0:00:43]} 6. Bg3 {[%emt 0:00:22]} O-O {[%emt 0:00:25]} 7. Bd3 {[%emt 0:00:07]} Qc7 {[%emt 0:00:25]} 8. Bxd6 {[%emt 0:00:10]} Qxd6 {[%emt 0:00:12]} 9. O-O {[%emt 0:00:05]} Nbd7 {[%emt 0:00:28]} 10. Qe2 {[%emt 0:00:46]} e5 {[%emt 0:01:27]} 11. Bb5 {[%emt 0:01:44]} e4 {[%emt 0:01:05]} 12. Ng5 {[%emt 0:01:45]} a6 {[%emt 0:03:14]} 13. Bxd7 {[%emt 0:01:48]} Bxd7 {[%emt 0:00:42]} 14. Qc2 {[%emt 0:02:39]} Ng4 {[%emt 0:03:29]} 15. f4 {[%emt 0:03:38]} Nxe3 {[%emt 0:00:41]} 16. Qf2 {[%emt 0:01:08]} Nxf1 {[%emt 0:00:46]} 17. Kxf1 {[%emt 0:00:41]} cxd4 {[%emt 0:03:26]} 18. Qxd4 {[%emt 0:00:16]} Qxf4+ {[%emt 0:00:46]} 19. Nf3 {[%emt 0:04:42]} Qc1+ {[%emt 0:01:17]} 20. Ne1 {[%emt 0:04:21]} Bb5+ {[%emt 0:01:35]} 21. Kf2 {[%emt 0:03:55]} Rae8 {[%emt 0:03:24]} 22. Qe3 {[%emt 0:00:57]} Qxb2+ {[%emt 0:01:17]} 23. Kg1 {[%emt 0:02:56]} Qxa1 {[%emt 0:01:09]} 24. Na3 {[%emt 0:01:56]} Bd3 {[%emt 0:03:12]} 25. h3 {[%emt 0:01:46]} Qxa2 {[%emt 0:00:45]} 26. Qc1 {[%emt 0:01:31]} Re6 {[%emt 1:12:21]} 27. Nec2 {[%emt 0:00:25]} Rg6 {[%emt 0:00:00]} 28. g4 {[%emt 0:01:13]} f5 {[%emt 0:00:00]} 29. Nb4 {[%emt 0:02:02]} Qe2 {[%emt 0:00:00]} 30. Nxd3 {[%emt 0:00:40]} exd3 {[%emt 0:00:00]} 31. c4 {[%emt 1:04:05]} d2 {[%emt 0:02:30]} 32. Qc2 {[%emt 0:00:00]} d1=Q+ {[%emt 0:00:00]} 33. Qxd1 {[%emt 0:00:00]} Qxd1+ {[%emt 0:00:00]} 34. Kh2 {[%emt 0:00:00]} fxg4 {[%emt 0:00:00]} 35. hxg4 {[%emt 0:00:00]} Rh6+ {[%emt 0:00:00]} 36. Kg2 {[%emt 0:00:00]} Qxg4# {[%emt 0:00:00]} 0-1

[Event "XVI Memorial Lezcano Montalvo 2024"]
[Site "Gran Canaria"]
[Date "2024.03.30"]
[Round "8.27"]
[White "Perez Garcia, Jimena"]
[Black "Rivero Reyes, Alejandro"]
[Result "1-0"]
[ECO "E73"]
[WhiteElo "1992"]
[BlackElo "1799"]
[Annotator "RC"]
[PlyCount "90"]
[EventDate "2024.03.23"]
[EventType "swiss"]
[EventCountry "ESP"]
[SourceTitle "playchess.com"]
[Source "ChessBase"]
[SourceQuality "1"]
[TimeControl "5400+30"]

1. d4 {[%emt 0:00:12]} Nf6 {[%emt 0:00:07]} 2. c4 {[%emt 0:00:17]} g6 {[%emt 0:01:08]} 3. Nc3 {[%emt 0:00:20]} Bg7 {[%emt 0:00:09]} 4. e4 {[%emt 0:00:30]} d6 {[%emt 0:00:08]} 5. Be2 {[%emt 0:00:41]} O-O {[%emt 0:00:26]} 6. Be3 {[%emt 0:00:28]} c5 {[%emt 0:01:44]} 7. d5 {[%emt 0:00:30]} e6 {[%emt 0:00:31]} 8. Nf3 {[%emt 0:01:19]} exd5 {[%emt 0:00:56]} 9. cxd5 {[%emt 0:00:10]} Bg4 {[%emt 0:04:13]} 10. O-O {[%emt 0:01:40]} Bxf3 {[%emt 0:05:15]} 11. Bxf3 {[%emt 0:00:11]} Re8 {[%emt 0:01:01]} 12. Bf4 {[%emt 0:07:03]} Na6 {[%emt 0:04:43]} 13. Re1 {[%emt 0:04:31]} Nc7 {[%emt 0:02:21]} 14. a4 {[%emt 0:01:08]} Na6 {[%emt 0:05:45]} 15. Nb5 {[%emt 0:05:37]} Bf8 {[%emt 0:02:34]} 16. Qd2 {[%emt 0:06:22]} Nb4 {[%emt 0:08:27]} 17. Rad1 {[%emt 0:09:14]} a6 {[%emt 0:05:40]} 18. Na3 {[%emt 0:13:58]} Nd7 {[%emt 0:15:23]} 19. Nc4 {[%emt 0:15:50]} Nb6 {[%emt 0:05:39]} 20. Nxb6 {[%emt 0:04:18]} Qxb6 {[%emt 0:00:31]} 21. h4 {[%emt 0:01:14]} Rad8 {[%emt 0:06:02]} 22. h5 {[%emt 0:02:37]} Bg7 {[%emt 0:02:19]} 23. Bg5 {[%emt 0:03:07]} Rb8 {[%emt 0:03:39]} 24. Bg4 {[%emt 0:01:05]} Qc7 {[%emt 0:01:07]} 25. Rc1 {[%emt 0:02:14]} a5 {[%emt 0:03:14]} 26. hxg6 {[%emt 0:08:15]} hxg6 {[%emt 0:02:01]} 27. f4 {[%emt 0:01:09]} c4 {[%emt 0:07:56]} 28. f5 {[%emt 0:02:04]} f6 {[%emt 0:02:06]} 29. Bh4 {[%emt 0:03:27]} g5 {[%emt 0:04:16]} 30. Bf2 {[%emt 0:00:01]} Qd7 {[%emt 0:01:57]} 31. Rxc4 {[%emt 0:00:31]} Qxa4 {[%emt 0:00:25]} 32. Bh5 {[%emt 0:01:42]} Rec8 {[%emt 0:00:31]} 33. Rec1 {[%emt 0:00:49]} Rxc4 {[%emt 0:01:38]} 34. Rxc4 {[%emt 0:00:06]} Qa2 {[%emt 0:01:37]} 35. Qc1 {[%emt 0:02:34]} Nd3 {[%emt 0:00:49]} 36. Rc8+ {[%emt 0:00:15]} Kh7 {[%emt 0:00:44]} 37. Bg6+ {[%emt 0:00:09]} Kh6 {[%emt 0:00:40]} 38. Qd1 {[%emt 0:00:24]} Nf4 {[%emt 0:01:11]} 39. Rxb8 {[%emt 0:00:14]} Qxb2 {[%emt 0:00:27]} 40. Bf7 {[%emt 0:01:04]} Ne2+ {[%emt 0:00:34]} 41. Kh1 {[%emt 0:00:51]} Nf4 {[%emt 0:00:30]} 42. Qf3 {[%emt 0:00:49]} Qc1+ {[%emt 0:00:31]} 43. Kh2 {[%emt 0:00:46]} Qf1 {[%emt 0:00:29]} 44. Be3 {[%emt 0:00:46]} Qe1 {[%emt 0:00:35]} 45. Bxf4 {[%emt 0:00:18]} Qh4+ {[%emt 0:00:18]} 1-0

[Event "XVI Memorial Lezcano Montalvo 2024"]
[Site "Gran Canaria"]
[Date "2024.03.30"]
[Round "8.29"]
[White "Zhou, Lepu Coco"]
[Black "Bangiev, Katharina"]
[Result "1-0"]
[ECO "B38"]
[WhiteElo "1980"]
[BlackElo "1779"]
[Annotator "RC"]
[PlyCount "71"]
[EventDate "2024.03.23"]
[EventType "swiss"]
[EventCountry "ESP"]
[SourceTitle "playchess.com"]
[Source "ChessBase"]
[SourceQuality "1"]
[TimeControl "5400+30"]

1. e4 {[%emt 0:00:04]} c5 {[%emt 0:00:05]} 2. Nf3 {[%emt 0:00:07]} Nc6 {[%emt 0:00:10]} 3. d4 {[%emt 0:00:10]} cxd4 {[%emt 0:00:06]} 4. Nxd4 {[%emt 0:00:05]} g6 {[%emt 0:00:09]} 5. c4 {[%emt 0:00:06]} Bg7 {[%emt 0:00:06]} 6. Be3 {[%emt 0:00:05]} Nf6 {[%emt 0:00:10]} 7. Nc3 {[%emt 0:00:09]} O-O {[%emt 0:00:20]} 8. Be2 {[%emt 0:00:12]} d6 {[%emt 0:00:11]} 9. O-O {[%emt 0:00:18]} Bd7 {[%emt 0:00:23]} 10. h3 {[%emt 0:00:47]} Nxd4 {[%emt 0:00:55]} 11. Bxd4 {[%emt 0:00:07]} Bc6 {[%emt 0:00:09]} 12. Qc2 {[%emt 0:00:06]} h5 {[%emt 0:07:45]} 13. Rad1 {[%emt 0:16:54]} Nd7 {[%emt 0:06:52]} 14. Bxg7 {[%emt 0:05:35]} Kxg7 {[%emt 0:00:10]} 15. b4 {[%emt 0:00:09]} b6 {[%emt 0:00:47]} 16. Nd5 {[%emt 0:01:00]} a5 {[%emt 0:04:26]} 17. Rd3 {[%emt 0:07:46]} axb4 {[%emt 0:06:17]} 18. Rg3 {[%emt 0:04:12]} Bxd5 {[%emt 0:07:13]} 19. cxd5 {[%emt 0:01:01]} Nf6 {[%emt 0:02:46]} 20. Bb5 {[%emt 0:03:52]} Ra3 {[%emt 0:07:01]} 21. Rxa3 {[%emt 0:00:52]} bxa3 {[%emt 0:00:03]} 22. Bc6 {[%emt 0:00:11]} Qb8 {[%emt 0:04:55]} 23. Rb1 {[%emt 0:03:42]} Qa7 {[%emt 0:00:55]} 24. Qc3 {[%emt 0:06:39]} Kh7 {[%emt 0:02:08]} 25. Qe3 {[%emt 0:00:46]} Rb8 {[%emt 0:04:23]} 26. Rb3 {[%emt 0:04:37]} Nd7 {[%emt 0:09:04]} 27. Rxa3 {[%emt 0:04:09]} Qc7 {[%emt 0:00:11]} 28. f4 {[%emt 0:08:17]} Nc5 {[%emt 0:04:23]} 29. f5 {[%emt 0:04:15]} b5 {[%emt 0:01:55]} 30. Qf4 {[%emt 0:00:38]} Kg7 {[%emt 0:04:27]} 31. fxg6 {[%emt 0:01:45]} fxg6 {[%emt 0:01:49]} 32. Rf3 {[%emt 0:00:19]} Qa7 {[%emt 0:02:29]} 33. Kh2 {[%emt 0:02:22]} Rg8 {[%emt 0:03:57]} 34. Bxb5 {[%emt 0:01:45]} Qc7 {[%emt 0:01:30]} 35. Be8 {[%emt 0:02:37]} Qd8 {[%emt 0:04:21]} 36. Bxg6 {[%emt 0:01:27]} 1-0

[Event "XVI Memorial Lezcano Montalvo 2024"]
[Site "Gran Canaria"]
[Date "2024.03.30"]
[Round "8.30"]
[White "Camino Carrio, Nicanor"]
[Black "Juan Miguel, Javier"]
[Result "1-0"]
[ECO "B01"]
[WhiteElo "1962"]
[BlackElo "1597"]
[Annotator "NA RC"]
[PlyCount "67"]
[EventDate "2024.03.23"]
[EventType "swiss"]
[EventCountry "ESP"]
[SourceTitle "playchess.com"]
[Source "ChessBase"]
[SourceQuality "1"]
[TimeControl "5400+30"]

1. e4 {[%emt 0:00:23]} d5 {[%emt 0:00:49]} 2. exd5 {[%emt 0:00:08]} Qxd5 {[%emt 0:00:12]} 3. Nc3 {[%emt 0:00:09]} Qd6 {[%emt 0:00:00]} 4. d4 {[%emt 0:00:17]} Nf6 {[%emt 0:00:05]} 5. Nf3 {[%emt 0:00:30]} a6 {[%emt 0:01:07]} 6. Ne5 {[%emt 0:00:45]} b5 {[%emt 0:02:45]} 7. Bd3 {[%emt 0:02:22]} Bb7 {[%emt 0:01:43]} 8. O-O {[%emt 0:02:14]} Nbd7 {[%emt 0:02:39]} 9. Re1 {[%emt 0:01:52]} c5 {[%emt 0:08:48]} 10. Nxd7 {[%emt 1:26:50]} Nxd7 {[%emt 0:00:00]} 11. Be4 {[%emt 0:00:00]} Bxe4 {[%emt 0:03:15]} 12. Nxe4 {[%emt 0:00:00]} Qxd4 {[%emt 0:02:03]} 13. Qxd4 {[%emt 0:00:00]} cxd4 {[%emt 0:00:10]} 14. Nd6+ {[%emt 0:00:00]} Kd8 {[%emt 0:01:00]} 15. Nxf7+ {[%emt 0:00:00]} Ke8 {[%emt 0:01:13]} 16. Nxh8 {[%emt 0:00:00]} g6 {[%emt 0:01:43]} 17. Bg5 {[%emt 0:00:00]} e5 {[%emt 0:04:20]} 18. f4 {[%emt 0:00:00]} Bg7 {[%emt 0:03:45]} 19. Nxg6 {[%emt 0:00:00]} hxg6 {[%emt 0:00:47]} 20. fxe5 {[%emt 0:00:00]} Ra7 {[%emt 0:05:59]} 21. Re2 {[%emt 0:00:00]} Nc5 {[%emt 0:03:19]} 22. e6 {[%emt 0:00:00]} d3 {[%emt 0:07:39]} 23. cxd3 {[%emt 0:00:00]} Bd4+ {[%emt 0:01:51]} 24. Be3 {[%emt 0:00:00]} Bxe3+ {[%emt 0:01:14]} 25. Rxe3 {[%emt 0:00:00]} Re7 {[%emt 0:01:08]} 26. d4 {[%emt 0:00:00]} Nb7 {[%emt 0:02:37]} 27. Rc1 {[%emt 0:00:00]} Nd6 {[%emt 0:02:06]} 28. Rc6 {[%emt 0:00:00]} Nb7 {[%emt 0:03:30]} 29. Rc8+ {[%emt 0:00:00]} Nd8 {[%emt 0:02:33]} 30. d5 {[%emt 0:00:00]} Rh7 {[%emt 0:04:37]} 31. d6 {[%emt 0:00:00]} Rh4 {[%emt 0:00:44]} 32. e7 {[%emt 0:00:00]} Rc4 {[%emt 0:00:06]} 33. exd8=Q+ {[%emt 0:00:00]} Kf7 {[%emt 0:00:22]} 34. Qe7# {[%emt 0:00:00]} 1-0